bitfinex/quotes_ETHUSD_20240713
["timestamp","ask_amount","ask_price","bid_price","bid_amount"]
[1720908746063,1.09206121,3172.5,3172.4,2.20648]
[1720908746264,2.4681,3173.1,3172.4,2.20648]
[1720908746469,1.45226041,3173.0,3172.4,2.20648]
[1720908746699,1.09206137,3172.9,3172.4,2.20648]
[1720908747398,1.09206137,3172.8,3172.4,2.20648]
[1720908747590,1.09206137,3172.7,3172.4,2.20648]
[1720908747816,1.09206137,3172.6,3172.4,2.20648]
[1720908747989,1.09206137,3172.9,3172.4,2.20648]
[1720908748318,1.09206137,3172.8,3172.4,2.20648]
[1720908748526,1.09206137,3172.7,3172.4,2.20648]
[1720908748690,1.09206137,3172.6,3172.4,2.20648]
[1720908748890,1.09206137,3172.5,3172.4,2.20648]
[1720908749125,1.09207111,3172.5,3172.4,2.20648]
[1720908749325,2.4681,3173.1,3172.4,2.20648]
[1720908749493,1.09205244,3172.5,3172.4,2.20648]
[1720908749823,1.09205244,3172.9,3172.4,2.20648]
[1720908750016,1.09205244,3172.8,3172.4,2.20648]
[1720908750218,1.09205244,3172.7,3172.4,2.20648]
[1720908750421,1.09205244,3172.6,3172.4,2.20648]
[1720908750722,1.09205244,3173.0,3172.4,2.20648]
[1720908750886,1.09205244,3172.9,3172.4,2.20648]
[1720908751105,0.46940429,3173.0,3172.4,2.20648]
[1720908751106,1.09205244,3172.8,3172.5,2.2694]
[1720908751284,1.09205244,3172.7,3172.5,2.2694]
[1720908751536,1.09205244,3172.6,3172.5,2.2694]
[1720908752728,1.09197902,3172.6,3172.5,2.2694]
[1720908753539,1.09197902,3172.6,3172.5,2.716988]
[1720908754496,1.09197902,3172.6,3172.5,4.923448]
[1720908754792,1.09197902,3172.6,3172.5,10.140368]
[1720908754999,1.09197902,3172.6,3172.5,13.690368]
[1720908755397,1.13389622,3173.9,3173.2,2.20591]
[1720908755718,1.13389622,3173.9,3173.2,2.3802]
[1720908755719,1.4376469,3173.8,3173.2,2.3802]
[1720908756135,1.09182338,3173.7,3173.2,2.3802]
[1720908756438,0.34583962,3173.8,3173.2,2.3802]
[1720908756753,1.09182022,3173.7,3173.2,2.3802]
[1720908756901,1.09182022,3173.6,3173.2,2.3802]
[1720908757105,1.09182022,3173.7,3173.2,2.3802]
[1720908759344,0.34583962,3173.8,3173.2,2.3802]
[1720908759516,1.09180616,3173.6,3173.2,2.3802]
[1720908759718,1.09180616,3173.5,3173.2,2.3802]
[1720908759975,1.09180616,3173.4,3173.2,4.58617]
[1720908760127,1.09180616,3173.8,3173.2,4.58617]
[1720908760331,1.09180616,3173.7,3173.2,4.58617]
[1720908760637,1.09180616,3173.6,3173.2,4.58617]
[1720908760832,1.09180616,3173.5,3173.2,4.58617]
[1720908761041,1.09180616,3173.4,3173.2,4.58617]
[1720908761365,1.09180616,3173.3,3173.2,4.58617]
[1720908761566,1.09180616,3173.3,3173.2,5.345793]
[1720908762650,1.09176619,3173.3,3173.2,5.345793]
[1720908765942,2.2979,3173.6,3173.0,2.20606]
[1720908766137,1.09183001,3173.5,3173.0,2.20606]
[1720908766362,1.09183001,3173.4,3173.0,2.20606]
[1720908766564,1.09185539,3173.3,3173.0,2.20606]
[1720908766791,1.09185539,3173.2,3173.0,2.20606]
[1720908766995,1.09185539,3173.5,3173.1,0.40447646]
[1720908767145,1.09185525,3173.4,3173.0,2.20606]
[1720908767480,1.09185525,3173.3,3173.0,2.20606]
[1720908767682,1.09185525,3173.2,3173.0,2.20606]
[1720908767977,1.09185525,3173.1,3173.0,2.20606]
[1720908768155,1.09185525,3173.5,3173.0,2.20606]
[1720908768356,1.09185525,3173.4,3173.0,2.20606]
[1720908768556,1.09185525,3173.3,3173.0,2.20606]
[1720908768770,1.09185525,3173.2,3173.0,2.20606]
[1720908768959,1.09185525,3173.1,3173.0,2.974811]
[1720908769286,1.09185374,3173.1,3173.0,2.974811]
[1720908769493,1.09185549,3173.1,3173.0,2.974811]
[1720908772487,1.09185549,3173.1,3172.8,2.20625]
[1720908772691,1.09185549,3173.0,3172.8,5.20625]
[1720908772851,1.09188673,3172.9,3172.8,5.20625]
[1720908773282,1.09188673,3172.9,3172.8,6.275032]
[1720908776405,3.1019,3173.6,3172.9,2.20617]
[1720908776709,3.1019,3173.6,3172.9,5.20617]
[1720908776861,1.09187194,3173.5,3172.9,5.20617]
[1720908777062,1.09187194,3173.4,3172.9,5.20617]
[1720908777381,1.09187194,3173.3,3172.9,5.20617]
[1720908777570,1.09187194,3173.2,3172.9,5.20617]
[1720908777771,1.09187194,3173.1,3172.9,6.194532]
[1720908777968,1.09187194,3173.5,3172.9,6.194532]
[1720908778169,1.09187194,3173.4,3172.9,5.20617]
[1720908778399,1.09187194,3173.5,3172.9,5.20617]
[1720908778601,1.09187194,3173.4,3172.9,5.20617]
[1720908778755,1.09187194,3173.5,3172.9,5.20617]
[1720908778961,1.09187194,3173.4,3172.9,5.20617]
[1720908779173,1.09187194,3173.3,3172.9,5.20617]
[1720908779387,1.09188142,3173.2,3172.9,5.20617]
[1720908779579,1.09188142,3173.1,3172.9,5.20617]
[1720908779782,1.09187546,3173.0,3172.9,6.194532]
[1720908780789,1.09187546,3173.0,3172.9,8.487532]
[1720908781297,1.09187546,3173.0,3172.9,10.693712]
[1720908782308,0.32989622,3173.9,3173.4,2.293]
[1720908782455,1.8957885,3173.8,3173.4,2.293]
[1720908782780,1.0917885,3173.7,3173.3,2.20587]
[1720908782981,1.0917885,3173.6,3173.3,2.20587]
[1720908783184,1.0917885,3173.7,3173.3,2.20587]
[1720908783357,1.0917885,3173.6,3173.3,2.20587]
[1720908783563,1.0917885,3173.7,3173.3,2.20587]
[1720908783764,1.0917885,3173.6,3173.3,2.20587]
[1720908783965,1.0917885,3173.5,3173.3,2.20587]
[1720908784174,1.0917885,3173.4,3173.3,2.20587]
[1720908784894,1.0917885,3173.7,3173.3,2.20587]
[1720908785116,1.0917885,3173.6,3173.3,2.20587]
[1720908785327,1.0917885,3173.5,3173.3,2.20587]
[1720908785533,1.09182588,3173.4,3173.2,2.20596]
[1720908785728,1.09183042,3173.4,3173.2,2.20596]
[1720908786030,0.804,3173.8,3173.2,2.20596]
[1720908786200,1.09183088,3173.7,3173.2,2.20596]
[1720908786542,1.09183088,3173.6,3173.2,2.20596]
[1720908786699,1.09183088,3173.5,3173.2,2.20596]
[1720908786904,1.09183088,3173.4,3173.2,2.20596]
[1720908787097,1.09183088,3173.7,3173.2,2.20596]
[1720908787301,1.09183088,3173.6,3173.2,2.20596]
[1720908787503,1.09183088,3173.5,3173.2,2.20596]
[1720908787704,1.09183088,3173.4,3173.2,2.20596]
[1720908787902,1.09183088,3173.3,3173.2,2.20596]
[1720908788791,1.09180663,3173.3,3173.2,2.20596]
[1720908788990,1.09180073,3173.3,3173.2,2.20596]
[1720908792313,0.804,3173.8,3173.2,2.20596]
[1720908792546,3.54841146,3173.7,3173.0,2.20607]
[1720908792858,2.33105261,3173.6,3173.0,5.20607]
[1720908793027,1.09181146,3173.5,3173.0,5.20607]
[1720908793359,1.09181146,3173.4,3173.0,5.20607]
[1720908793534,1.09181146,3173.5,3173.0,5.20607]
[1720908793733,1.09181146,3173.4,3173.0,5.20607]
[1720908793964,1.09181146,3173.5,3173.0,5.20607]
[1720908794260,1.09181146,3173.4,3173.0,5.20607]
[1720908794439,1.09181146,3173.5,3173.0,5.20607]
[1720908794748,1.09181146,3173.4,3173.0,5.20607]
[1720908794958,1.09181146,3173.5,3173.0,5.20607]
[1720908795259,1.09181146,3173.4,3173.0,5.20607]
[1720908795417,1.09181146,3173.5,3173.0,5.20607]
[1720908795617,1.23924115,3173.6,3173.0,5.20607]
[1720908795618,1.09181146,3173.4,3173.0,5.20607]
[1720908795844,1.09184312,3173.3,3173.0,5.20607]
[1720908796044,1.09184312,3173.2,3173.0,5.20607]
[1720908796264,0.804,3173.6,3173.0,5.20607]
[1720908796525,1.09184168,3173.5,3173.0,5.20607]
[1720908796725,1.09184168,3173.4,3173.0,5.20607]
[1720908796932,1.09184168,3173.3,3173.0,5.20607]
[1720908797154,1.09184168,3173.2,3173.0,5.20607]
[1720908797325,1.09184168,3173.5,3173.1,2.20604]
[1720908797542,1.09184168,3173.4,3173.1,2.20604]
[1720908797882,1.09184168,3173.3,3173.1,2.20604]
[1720908798182,1.09184168,3173.2,3173.1,2.20604]
[1720908798343,1.09184168,3173.5,3173.1,2.20604]
[1720908798551,1.09184168,3173.4,3173.1,2.20604]
[1720908798769,1.09184168,3173.3,3173.1,2.20604]
[1720908798941,1.09184168,3173.5,3173.1,2.20604]
[1720908799157,0.43524417,3173.5,3173.1,2.20604]
[1720908799342,1.09186234,3173.4,3173.1,2.20604]
[1720908799541,1.09186234,3173.3,3173.1,2.20604]
[1720908799741,1.09186234,3173.4,3173.1,2.20604]
[1720908799980,1.09186234,3173.3,3173.1,2.20604]
[1720908800178,1.09186234,3173.4,3173.1,2.20604]
[1720908800386,1.09186234,3173.3,3173.1,2.20604]
[1720908801082,1.09186234,3173.4,3173.1,2.20604]
[1720908801300,1.09186234,3173.3,3173.1,2.20604]
[1720908801584,1.09186234,3173.2,3173.0,3.0]
[1720908801798,1.09186234,3173.3,3172.8,3.0]
[1720908801947,1.09186234,3173.2,3172.8,3.0]
[1720908802147,1.09186234,3173.3,3172.8,3.0]
[1720908802375,1.09186234,3173.2,3172.9,2.20614]
[1720908802689,1.09196282,3173.1,3172.9,2.20614]
[1720908802986,1.09196282,3173.0,3172.9,2.20614]
[1720908805986,3.254,3173.4,3172.9,2.20614]
[1720908806181,1.09194405,3173.0,3172.8,3.0]
[1720908806546,3.254,3173.4,3172.8,3.0]
[1720908806883,1.09195187,3173.3,3172.8,5.20623]
[1720908807188,1.0919559,3173.2,3172.8,5.20623]
[1720908807347,3.254,3173.4,3172.8,6.919929]
[1720908807348,1.0919559,3173.1,3172.8,6.919929]
[1720908807576,1.0919559,3173.0,3172.8,6.919929]
[1720908807783,1.0919559,3172.9,3172.8,6.919929]
[1720908809358,1.0919358,3172.9,3172.8,6.919929]
[1720908809755,1.09194472,3172.9,3172.8,6.919929]
[1720908809964,1.09194472,3172.9,3172.8,5.20623]
[1720908813382,1.09192334,3172.9,3172.8,5.20623]
[1720908815256,1.09192334,3172.9,3172.8,3.0]
[1720908816086,1.09192334,3172.9,3172.6,5.20633]
[1720908816406,1.09192334,3172.8,3172.6,5.20633]
[1720908816691,3.254,3173.4,3172.7,0.751083]
[1720908816859,1.09195965,3173.3,3172.7,3.0]
[1720908817056,3.254,3173.4,3172.7,3.0]
[1720908817303,1.0919675,3173.2,3172.6,5.20633]
[1720908817466,1.0919675,3173.1,3172.6,5.20633]
[1720908817791,1.0919675,3173.0,3172.6,6.178065]
[1720908817973,1.0919675,3173.3,3172.7,2.20632]
[1720908818157,3.254,3173.4,3172.7,2.20632]
[1720908818158,1.0919675,3173.2,3172.7,5.20632]
[1720908818361,1.0919675,3173.1,3172.7,5.20632]
[1720908818668,1.0919675,3173.0,3172.7,5.20632]
[1720908818890,3.254,3173.4,3172.8,2.2537]
[1720908818891,1.0919675,3172.9,3172.8,2.2537]
[1720908819091,1.0919675,3172.9,3172.8,5.2537]
[1720908819812,3.254,3173.4,3172.8,5.2537]
[1720908820119,1.09194492,3173.3,3172.8,5.2537]
[1720908820396,3.254,3173.4,3172.8,5.2537]
[1720908820397,1.09194492,3173.2,3172.8,5.2537]
[1720908820610,1.09194492,3173.3,3172.8,5.2537]
[1720908820916,1.09194492,3173.2,3172.8,5.2537]
[1720908821073,1.09194492,3173.1,3172.8,5.2537]
[1720908821283,1.09194492,3173.0,3172.8,5.2537]
[1720908821487,1.09194492,3172.9,3172.8,6.220335]
[1720908821696,1.09194492,3172.9,3172.8,8.426585]
[1720908823204,1.09194492,3172.9,3172.8,8.379135]
[1720908823501,1.09194492,3172.9,3172.8,10.632835]
[1720908823703,1.09187309,3172.9,3172.8,10.632835]
[1720908826817,3.4484,3173.7,3173.0,2.20608]
[1720908827116,1.09185339,3173.6,3173.0,2.20608]
[1720908827322,1.09185651,3173.5,3173.0,2.20608]
[1720908827644,1.09185651,3173.4,3173.0,2.20608]
[1720908827927,1.09185651,3173.3,3173.0,2.20608]
[1720908828227,1.09185651,3173.2,3173.0,2.20608]
[1720908828400,1.09185651,3173.1,3173.0,2.20608]
[1720908829894,1.09185284,3173.1,3173.0,2.20608]
[1720908830339,1.09185301,3173.1,3173.0,2.20608]
[1720908831416,1.09185301,3173.1,3173.0,3.2693465]
[1720908833795,1.09187059,3173.6,3173.1,2.20604]
[1720908833991,6.18843451,3173.7,3173.1,2.20604]
[1720908833992,1.09187059,3173.5,3173.1,2.20604]
[1720908834195,1.09187059,3173.4,3173.1,2.20604]
[1720908834434,1.09187059,3173.3,3173.1,2.20604]
[1720908834628,1.09187059,3173.2,3173.1,2.20604]
[1720908834792,1.09187059,3173.6,3173.1,2.20604]
[1720908834999,1.09187059,3173.5,3173.1,2.20604]
[1720908835339,1.09187059,3173.4,3173.1,2.20604]
[1720908835508,1.09187059,3173.3,3173.1,2.20604]
[1720908835837,1.09187059,3173.2,3173.1,2.20604]
[1720908836043,1.09187059,3173.6,3173.1,2.20604]
[1720908836332,1.09187059,3173.5,3173.1,2.20604]
[1720908836533,1.09187059,3173.4,3173.1,2.20604]
[1720908836735,1.09187059,3173.3,3173.1,2.20604]
[1720908836946,1.09187059,3173.2,3173.1,2.20604]
[1720908837245,1.09186792,3173.2,3173.1,2.20604]
[1720908837600,1.09186701,3173.2,3173.1,2.20604]
[1720908840537,0.275,3173.7,3173.2,4.64443]
[1720908840751,1.09185908,3173.6,3173.3,2.2059]
[1720908841038,1.09185908,3173.5,3173.3,2.2059]
[1720908841203,1.09185908,3173.4,3173.3,2.2059]
[1720908842350,1.09185908,3173.4,3173.3,2.9650652]
[1720908843116,1.09183071,3173.4,3173.3,2.9650652]
[1720908846840,0.275,3173.7,3173.3,2.9650652]
[1720908847041,1.09182839,3173.6,3173.3,2.9650652]
[1720908847336,1.09182839,3173.5,3173.3,2.2059]
[1720908847539,1.09182839,3173.4,3173.3,2.2059]
[1720908847735,1.09182839,3173.6,3173.3,2.2059]
[1720908847948,1.09182839,3173.5,3173.3,2.2059]
[1720908848263,1.09182839,3173.4,3173.3,2.2059]
[1720908848460,1.09182839,3173.6,3173.3,2.2059]
[1720908848640,1.09182839,3173.5,3173.3,2.2059]
[1720908848834,1.09182839,3173.4,3173.3,2.2059]
[1720908849443,1.09182849,3173.4,3173.3,2.2059]
[1720908849654,0.275,3173.7,3173.3,2.2059]
[1720908849855,1.09182832,3173.6,3173.3,2.2059]
[1720908850054,1.09182832,3173.5,3173.3,2.2059]
[1720908850367,1.09182832,3173.4,3173.3,2.2059]
[1720908850866,0.275,3173.7,3173.3,2.2059]
[1720908850867,1.09182832,3173.6,3173.3,2.2059]
[1720908851052,1.09182832,3173.5,3173.3,2.2059]
[1720908851262,1.09182832,3173.4,3173.3,2.2059]
[1720908853077,0.275,3173.7,3173.3,2.2059]
[1720908853362,1.09183847,3173.6,3173.3,2.2059]
[1720908853569,1.09183847,3173.5,3173.3,2.2059]
[1720908853871,1.09183847,3173.4,3173.3,2.2059]
[1720908856633,1.09183928,3173.4,3173.3,2.2059]
[1720908859732,1.09184021,3173.4,3173.3,2.2059]
[1720908859931,1.09183998,3173.4,3173.3,2.2059]
[1720908863361,1.09183048,3173.4,3173.3,2.2059]
[1720908866134,1.09183048,3173.4,3173.2,2.4385]
[1720908866335,1.09183048,3173.3,3173.2,2.4385]
[1720908866635,1.09183129,3173.3,3173.2,4.64447]
[1720908867176,0.804,3173.8,3173.2,4.64447]
[1720908867332,3.5450127,3173.8,3173.2,4.64447]
[1720908867706,1.09183054,3173.7,3173.2,4.64447]
[1720908867862,1.09183054,3173.6,3173.2,4.64447]
[1720908868064,1.09183054,3173.5,3173.2,4.64447]
[1720908868246,1.09183054,3173.4,3173.2,4.64447]
[1720908868447,1.09183054,3173.3,3173.2,4.64447]
[1720908868648,1.09183054,3173.7,3173.2,5.24710758]
[1720908868850,1.09183054,3173.6,3173.2,4.64447]
[1720908869074,1.09183054,3173.5,3173.2,4.64447]
[1720908869271,1.09183054,3173.4,3173.2,4.64447]
[1720908869479,1.09183054,3173.3,3173.2,4.64447]
[1720908869841,1.09183101,3173.3,3173.2,4.64447]
[1720908870146,1.09183101,3173.3,3173.2,5.329516]
[1720908870955,1.09183101,3173.3,3173.2,8.329516]
[1720908871151,1.09183101,3173.3,3173.2,10.535486]
[1720908873786,2.74118569,3173.9,3173.4,2.2058]
[1720908873961,1.09182146,3173.8,3173.4,2.2058]
[1720908874162,1.09182146,3173.7,3173.4,2.2058]
[1720908874480,1.09182146,3173.6,3173.4,2.2058]
[1720908874662,1.09182146,3173.5,3173.4,2.2058]
[1720908874862,1.09182146,3173.5,3173.4,3.2593316]
[1720908877154,1.09181831,3173.5,3173.4,3.2593316]
[1720908877575,2.74115003,3173.9,3173.4,3.2593316]
[1720908877888,1.09181825,3173.8,3173.4,2.2058]
[1720908878046,1.09181825,3173.7,3173.4,2.2058]
[1720908878253,2.74115003,3173.9,3173.4,2.2058]
[1720908878254,1.09181825,3173.6,3173.4,2.2058]
[1720908878452,1.09181825,3173.5,3173.4,2.2058]
[1720908879697,1.09181825,3173.5,3173.4,3.2593316]
[1720908880265,1.09181816,3173.5,3173.4,3.2593316]
[1720908880477,1.09181797,3173.5,3173.4,3.2593316]
[1720908883866,3.0672,3174.0,3173.4,3.2593316]
[1720908884104,3.83336104,3173.9,3173.4,2.2058]
[1720908884279,1.09181831,3173.8,3173.4,2.2058]
[1720908884601,1.09181831,3173.7,3173.4,2.2058]
[1720908884781,1.09181831,3173.6,3173.4,2.2058]
[1720908885109,1.09181831,3173.5,3173.4,2.2058]
[1720908887303,2.74154273,3173.9,3173.4,3.21740453]
[1720908887472,1.09181721,3173.8,3173.4,2.2058]
[1720908887820,1.09181721,3173.7,3173.4,2.2058]
[1720908887987,1.09181738,3173.6,3173.4,2.2058]
[1720908888191,1.09181738,3173.5,3173.4,2.2058]
[1720908888390,1.09181738,3173.5,3173.4,2.57953404]
[1720908890908,1.09181773,3173.5,3173.4,2.57953404]
[1720908892517,1.09181773,3173.5,3173.4,2.2058]
[1720908894220,1.09181783,3173.5,3173.4,2.2058]
[1720908896745,1.09181783,3173.5,3173.3,3.0]
[1720908897034,1.09181783,3173.4,3173.3,3.0]
[1720908900841,1.09181853,3173.4,3173.3,3.0]
[1720908901300,0.804,3173.8,3173.3,3.0]
[1720908901504,1.09181835,3173.7,3173.3,3.0]
[1720908901714,1.09181835,3173.6,3173.3,3.0]
[1720908901935,1.09181835,3173.5,3173.3,3.0]
[1720908902130,1.09181835,3173.4,3173.3,3.0]
[1720908903514,1.09181832,3173.4,3173.3,3.0]
[1720908904237,1.09186083,3173.4,3173.1,3.0]
[1720908904438,1.09186083,3173.3,3173.1,3.0]
[1720908904636,1.09186083,3173.2,3173.1,4.709541]
[1720908904943,1.09186083,3173.5,3173.1,4.709541]
[1720908905267,1.09186083,3173.4,3173.1,4.709541]
[1720908905408,1.09186083,3173.3,3173.1,4.709541]
[1720908905607,1.09186083,3173.2,3173.1,4.709541]
[1720908906842,2.386,3173.7,3173.1,4.709541]
[1720908907019,1.09184494,3173.6,3173.1,3.0]
[1720908907217,1.09184494,3173.5,3173.1,3.0]
[1720908907542,1.09184494,3173.4,3173.1,3.0]
[1720908907855,1.09184494,3173.3,3173.1,3.0]
[1720908908020,1.09184494,3173.2,3173.1,3.0]
[1720908909865,1.09184494,3173.2,3173.0,5.2061]
[1720908910026,1.09184494,3173.1,3173.0,5.2061]
[1720908910221,1.09184494,3173.1,3173.0,6.173644]
[1720908910470,1.09184061,3173.1,3173.0,6.173644]
[1720908912363,1.09184061,3173.1,3173.0,5.2061]
[1720908913973,1.09184515,3173.1,3173.0,5.2061]
[1720908914333,1.09184515,3173.1,3173.0,2.2061]
[1720908916962,1.09184129,3173.1,3173.0,2.2061]
[1720908917342,0.804,3173.6,3173.0,2.2061]
[1720908917343,1.09184131,3173.5,3173.0,2.2061]
[1720908917545,1.09184131,3173.4,3173.0,2.2061]
[1720908917843,1.09184131,3173.3,3173.0,2.2061]
[1720908918071,1.09184131,3173.2,3173.0,2.2061]
[1720908918279,1.09184131,3173.1,3173.0,2.2061]
[1720908918665,1.09184131,3173.1,3173.0,2.95303]
[1720908918880,1.09184131,3173.1,3173.0,5.95303]
[1720908920559,2.386,3173.7,3173.0,5.95303]
[1720908920779,1.09182726,3173.6,3173.1,3.0]
[1720908920965,1.09182726,3173.5,3173.1,3.0]
[1720908921166,1.09182726,3173.4,3173.0,2.2061]
[1720908921336,1.09182726,3173.3,3173.0,2.2061]
[1720908921542,1.09182726,3173.2,3173.0,3.254054]
[1720908921754,1.09182726,3173.6,3173.1,3.0]
[1720908922044,1.09182726,3173.5,3173.1,3.0]
[1720908922378,1.09182726,3173.4,3173.1,3.0]
[1720908922584,1.09182726,3173.3,3173.1,5.20603]
[1720908922815,3.5461456,3173.8,3173.2,2.4804]
[1720908923081,1.09182447,3173.7,3173.2,2.4804]
[1720908923243,1.09182447,3173.6,3173.2,2.4804]
[1720908923565,1.09182447,3173.5,3173.2,2.4804]
[1720908923741,1.09182447,3173.4,3173.2,2.4804]
[1720908923941,1.09182447,3173.3,3173.2,3.57905344]
[1720908924144,1.09182432,3173.3,3173.2,5.4804]
[1720908924449,0.804,3173.8,3173.2,5.4804]
[1720908924774,0.804,3173.8,3173.3,3.0]
[1720908924775,1.09182362,3173.7,3173.3,3.0]
[1720908924940,1.09182362,3173.6,3173.3,3.0]
[1720908925142,1.09182362,3173.6,3173.2,2.4804]
[1720908925143,1.09182362,3173.5,3173.2,5.4804]
[1720908925383,1.09182362,3173.4,3173.2,6.469649]
[1720908925574,1.09182362,3173.3,3173.2,6.469649]
[1720908925746,1.09182362,3173.7,3173.2,6.469649]
[1720908925946,1.09182362,3173.6,3173.2,7.68636]
[1720908926164,1.09182362,3173.5,3173.2,7.68636]
[1720908926373,1.09182362,3173.4,3173.2,7.68636]
[1720908926582,1.09182362,3173.3,3173.2,7.68636]
[1720908926758,1.09182362,3173.7,3173.2,7.68636]
[1720908926959,1.09182362,3173.6,3173.2,7.68636]
[1720908927160,3.54615258,3173.8,3173.2,8.675602]
[1720908927161,1.09182362,3173.5,3173.2,8.675602]
[1720908927363,0.804,3173.8,3173.2,8.675602]
[1720908927762,1.09182331,3173.7,3173.2,8.675602]
[1720908928083,1.09182331,3173.6,3173.2,8.675602]
[1720908928292,1.09182331,3173.5,3173.2,8.675602]
[1720908928451,1.09182331,3173.4,3173.2,8.675602]
[1720908928758,3.54616955,3173.8,3173.3,0.8675602]
[1720908928960,1.09182256,3173.7,3173.3,3.0]
[1720908929177,1.09182256,3173.6,3173.3,3.0]
[1720908929379,1.09182256,3173.5,3173.3,3.0]
[1720908929548,1.09182256,3173.4,3173.3,3.0]
[1720908930261,1.09182256,3173.4,3173.3,5.2059]
[1720908931186,1.09181595,3173.4,3173.3,5.2059]
[1720908932947,1.09181595,3173.4,3173.3,6.195121]
[1720908933388,1.09181595,3173.4,3173.3,8.401021]
[1720908934368,2.74199625,3173.9,3173.5,2.20575]
[1720908934587,1.09180663,3173.8,3173.5,2.20575]
[1720908934907,2.74199446,3173.9,3173.5,2.20575]
[1720908935080,1.09180673,3173.8,3173.5,2.20575]
[1720908935255,1.09180673,3173.7,3173.5,2.20575]
[1720908935453,1.09180673,3173.6,3173.5,2.20575]
[1720908937495,1.09180734,3173.6,3173.5,2.20575]
[1720908937851,3.54584217,3173.9,3173.5,2.20575]
[1720908938091,1.09180687,3173.8,3173.5,2.20575]
[1720908938292,1.09180687,3173.7,3173.5,2.20575]
[1720908938606,1.09180687,3173.6,3173.5,2.20575]
[1720908941415,1.09180688,3173.6,3173.5,4.4115]
[1720908942677,1.09180688,3173.6,3173.5,6.9047]
[1720908942873,1.09180688,3173.6,3173.5,10.9940921]
[1720908944878,2.74147907,3174.0,3173.6,2.20564]
[1720908945104,1.09180138,3173.9,3173.6,5.20564]
[1720908945304,2.74147821,3174.0,3173.6,5.20564]
[1720908945608,1.0918005,3173.9,3173.6,5.20564]
[1720908945805,1.0918005,3173.8,3173.6,5.20564]
[1720908946100,2.74147821,3174.0,3173.6,5.20564]
[1720908946101,1.0918005,3173.7,3173.6,5.20564]
[1720908947949,1.09180041,3173.7,3173.6,5.20564]
[1720908948116,0.804,3174.1,3173.6,5.20564]
[1720908948415,3.8330906,3174.0,3173.6,5.20564]
[1720908948708,1.09180041,3173.9,3173.6,5.20564]
[1720908948912,1.09180041,3173.8,3173.6,5.20564]
[1720908949114,1.09180041,3173.7,3173.6,5.20564]
[1720908951601,1.09180069,3173.7,3173.6,5.20564]
[1720908954354,1.09180069,3173.7,3173.6,6.196099]
[1720908954798,1.36680069,3173.7,3173.6,6.196099]
[1720908955005,0.275,3173.7,3173.6,6.196099]
[1720908955236,1.36680006,3173.7,3173.6,6.196099]
[1720908955446,0.275,3173.7,3173.6,6.196099]
[1720908955753,1.36680023,3173.7,3173.6,6.196099]
[1720908956302,1.36680023,3173.7,3173.6,5.20564]
[1720908958208,1.36680031,3173.7,3173.6,5.20564]
[1720908958434,0.275,3173.7,3173.6,5.20564]
[1720908958638,1.36680024,3173.7,3173.6,5.20564]
[1720908961145,1.36680057,3173.7,3173.6,5.20564]
[1720908962818,1.36680057,3173.7,3173.6,3.0]
[1720908964362,0.275,3173.7,3173.6,3.0]
[1720908964658,1.36679265,3173.7,3173.6,3.0]
[1720908964863,0.275,3173.7,3173.6,3.0]
[1720908965032,1.36679349,3173.7,3173.6,3.0]
[1720908967234,1.36679349,3173.7,3173.6,3.769895]
[1720908967440,1.3667925,3173.7,3173.6,3.769895]
[1720908967752,1.36679212,3173.7,3173.6,3.769895]
[1720908971323,1.36679252,3173.7,3173.6,3.769895]
[1720908974770,1.36679221,3173.7,3173.6,3.769895]
[1720908977262,1.36679221,3173.7,3173.6,3.0]
[1720908977864,1.36678978,3173.7,3173.6,3.0]
[1720908981475,1.36678974,3173.7,3173.6,3.0]
[1720908984874,0.275,3173.7,3173.6,3.0]
[1720908985085,1.36678893,3173.7,3173.6,3.0]
[1720908985458,1.36678988,3173.7,3173.6,3.0]
[1720908987671,0.275,3173.7,3173.6,3.0]
[1720908988034,1.36679014,3173.7,3173.6,3.0]
[1720908988208,1.36679036,3173.7,3173.6,3.0]
[1720908988373,0.275,3173.7,3173.6,3.0]
[1720908988563,1.36679035,3173.7,3173.6,3.0]
[1720908991927,0.275,3173.7,3173.6,3.0]
[1720908992131,1.36679027,3173.7,3173.6,3.0]
[1720908995347,0.275,3173.7,3173.6,3.0]
[1720908995550,1.36678912,3173.7,3173.6,3.0]
[1720908995859,1.36678875,3173.7,3173.6,3.0]
[1720908998753,0.275,3173.7,3173.6,3.0]
[1720908998994,1.36678818,3173.7,3173.6,3.0]
[1720909002256,1.36678952,3173.7,3173.6,3.0]
[1720909005755,1.36679054,3173.7,3173.6,3.0]
[1720909006138,0.275,3173.7,3173.6,3.0]
[1720909006320,1.36679092,3173.7,3173.6,3.0]
[1720909008840,1.36679031,3173.7,3173.6,3.0]
[1720909009041,1.36679061,3173.7,3173.6,3.0]
[1720909010139,3.82209061,3173.7,3173.6,3.0]
[1720909010370,7.75105486,3173.7,3173.1,7.42]
[1720909010662,3.83488016,3173.6,3173.2,3.0]
[1720909010852,1.09179061,3173.5,3173.2,3.0]
[1720909011163,1.09179061,3173.4,3173.2,3.0]
[1720909011465,1.09179061,3173.3,3173.2,3.0]
[1720909011632,1.09179061,3173.6,3173.1,7.42]
[1720909011842,1.09179061,3173.5,3173.1,7.42]
[1720909012054,1.09179061,3173.4,3173.1,7.42]
[1720909012249,1.09179061,3173.3,3173.1,7.42]
[1720909012455,1.09189531,3173.2,3173.1,7.42]
[1720909012631,1.09189531,3173.2,3173.1,3.0]
[1720909013152,1.09189531,3173.2,3172.9,3.0]
[1720909013337,1.09189531,3173.1,3172.9,3.755102]
[1720909013667,1.09189531,3173.0,3172.9,3.0]
[1720909013861,6.27558061,3173.7,3172.9,3.0]
[1720909013862,1.09189531,3173.6,3172.9,3.0]
[1720909014070,1.09189531,3173.5,3172.9,3.0]
[1720909014224,1.09189531,3173.4,3172.9,3.0]
[1720909014433,3.5343,3173.7,3172.9,3.0]
[1720909014434,1.09189531,3173.3,3172.9,3.0]
[1720909014735,1.09189531,3173.2,3172.9,3.0]
[1720909014936,1.09189531,3173.1,3172.9,3.0]